bitfinex-derivatives/quotes_BTCF0:USTF0_20251011
["timestamp","ask_amount","ask_price","bid_price","bid_amount"]
[1760174466513,0.15293214,111830.0,111820.0,0.994809]
[1760174466713,0.02085917,111830.0,111820.0,0.90546]
[1760174466907,0.04237917,111830.0,111820.0,0.90546]
[1760174467111,0.14458017,111830.0,111820.0,0.89214]
[1760174467312,0.14458017,111830.0,111820.0,0.49214]
[1760174467811,0.11020017,111830.0,111820.0,0.994809]
[1760174468006,0.13172017,111830.0,111820.0,0.90546]
[1760174468405,0.14458017,111830.0,111820.0,0.89214]
[1760174468616,0.14458017,111830.0,111820.0,0.49214]
[1760174469315,0.14458017,111830.0,111820.0,0.4708]
[1760174469914,0.02085917,111830.0,111820.0,0.592419]
[1760174470118,0.17665314,111830.0,111820.0,0.11]
[1760174470316,0.95348963,111830.0,111820.0,0.11]
[1760174470510,0.1237577,111790.0,111780.0,0.02134]
[1760174470717,0.55912226,111790.0,111780.0,0.12]
[1760174471020,0.95912226,111790.0,111780.0,0.12]
[1760174471220,0.99122171,111790.0,111780.0,0.12899955]
[1760174471417,0.97136254,111790.0,111780.0,0.12899955]
[1760174471617,0.16298724,111790.0,111780.0,0.15033955]
[1760174471817,1.35215263,111790.0,111780.0,0.12899955]
[1760174472020,1.36820236,111790.0,111780.0,0.12]
[1760174472221,1.46820236,111790.0,111780.0,0.12]
[1760174472415,1.06820236,111790.0,111780.0,0.12]
[1760174472621,0.69128324,111790.0,111780.0,0.12]
[1760174472823,1.05208324,111790.0,111780.0,0.12]
[1760174475128,1.02005318,111790.0,111780.0,0.12]
[1760174476123,1.42005318,111790.0,111780.0,0.12]
[1760174476625,0.01999009,111790.0,111780.0,1.005101]
[1760174476819,0.0893654,111800.0,111780.0,0.91572]
[1760174477013,0.13079363,111800.0,111790.0,0.39572]
[1760174477220,0.110901,111780.0,111770.0,0.04390575]
[1760174477419,0.110901,111780.0,111770.0,0.17390575]
[1760174477621,0.110901,111780.0,111770.0,0.53470575]
[1760174477823,0.1308092,111780.0,111770.0,0.53470575]
[1760174478020,0.110901,111780.0,111770.0,0.53470575]
[1760174478922,0.23080692,111780.0,111770.0,0.53470575]
[1760174479227,0.23080692,111780.0,111770.0,0.49978575]
[1760174479228,0.65917231,111780.0,111770.0,0.49978575]
[1760174479426,1.01997231,111780.0,111770.0,0.13898575]
[1760174480526,1.78077231,111780.0,111770.0,0.13898575]
[1760174480727,1.92927231,111780.0,111770.0,0.13898575]
[1760174481116,0.110933,111740.0,111730.0,0.37438]
[1760174481317,0.110933,111740.0,111730.0,0.51572]
[1760174481927,0.110933,111740.0,111730.0,0.52449806]
[1760174482124,0.11104799,111740.0,111730.0,0.52449806]
[1760174482325,0.11104799,111740.0,111730.0,0.546074]
[1760174483526,0.11104799,111740.0,111730.0,0.545074]
[1760174483718,0.11104799,111740.0,111730.0,0.92549806]
[1760174483923,0.11104799,111740.0,111730.0,0.945074]
[1760174484322,0.08952799,111740.0,111730.0,1.034495]
[1760174484829,0.08952799,111740.0,111730.0,0.945074]
[1760174485829,0.08952799,111740.0,111730.0,1.034495]
[1760174486231,0.08952799,111740.0,111730.0,0.945074]
[1760174486432,0.08952799,111740.0,111730.0,1.034495]
[1760174487418,0.00011499,111740.0,111730.0,1.034495]
[1760174487625,0.1894003,111760.0,111750.0,0.05554594]
[1760174487824,0.1894003,111760.0,111750.0,0.61575094]
[1760174488227,0.1,111760.0,111750.0,1.356975]
[1760174488422,0.06636183,111780.0,111770.0,0.03597]
[1760174488629,0.06636183,111780.0,111770.0,0.616159]
[1760174488821,0.0893775,111790.0,111780.0,0.1253509]
[1760174489026,0.10924567,111790.0,111780.0,0.5261509]
[1760174489222,0.01986817,111790.0,111780.0,0.526151]
[1760174489530,0.0893674,111800.0,111790.0,0.03597]
[1760174489826,0.49310126,111800.0,111790.0,0.12597]
[1760174490322,0.90585126,111800.0,111790.0,0.09]
[1760174491228,0.112449,111770.0,111760.0,0.03597]
[1760174491428,0.49312286,111770.0,111760.0,0.16597]
[1760174491623,0.49312286,111770.0,111760.0,0.15221]
[1760174491833,0.50587286,111770.0,111760.0,0.13]
[1760174492026,0.49312286,111770.0,111760.0,0.15221]
[1760174492728,0.38067386,111770.0,111760.0,0.16597]
[1760174492936,0.11026286,111770.0,111760.0,0.616167]
[1760174494035,0.02087386,111770.0,111760.0,0.616167]
[1760174494238,0.21026286,111770.0,111760.0,0.616167]
[1760174494431,0.12087386,111770.0,111760.0,0.616167]
[1760174494630,0.02087386,111770.0,111760.0,0.616167]
[1760174494935,0.001,111770.0,111760.0,1.016167]
[1760174495337,0.001,111770.0,111760.0,1.43167239]
[1760174495933,0.4501633,111810.0,111800.0,0.01376]
[1760174496132,0.49314712,111810.0,111800.0,0.10597]
[1760174496334,0.59314712,111810.0,111800.0,0.10597]
[1760174496734,0.57008712,111810.0,111800.0,0.10597]
[1760174497237,0.57108712,111810.0,111800.0,0.10597]
[1760174497639,0.59414712,111810.0,111800.0,0.10597]
[1760174497938,1.00689712,111810.0,111800.0,0.07]
[1760174498933,0.02306,111780.0,111770.0,0.03597]
[1760174499135,0.49316482,111780.0,111770.0,0.05597]
[1760174500238,0.20930482,111780.0,111770.0,0.41677]
[1760174500439,0.20930482,111780.0,111770.0,0.906159]
[1760174500742,0.10930482,111780.0,111770.0,0.906159]
[1760174502138,0.13103482,111780.0,111770.0,0.41677]
[1760174502339,0.01992382,111780.0,111770.0,0.506159]
[1760174502542,0.0893742,111790.0,111780.0,0.125091]
[1760174502846,0.01998164,111790.0,111780.0,0.515891]
[1760174503045,0.10935464,111790.0,111780.0,0.515891]
[1760174503341,0.20935464,111790.0,111780.0,0.515891]
[1760174503849,0.20935464,111790.0,111780.0,0.42651]
[1760174504148,1.45217009,111790.0,111780.0,0.03]
[1760174504642,1.45217009,111790.0,111780.0,0.05309]
[1760174505035,1.43942009,111790.0,111780.0,0.05309]
[1760174505238,1.00739003,111790.0,111780.0,0.06571]
[1760174505450,0.20935464,111790.0,111780.0,0.06571]
[1760174505642,0.35785464,111790.0,111780.0,0.155091]
[1760174505943,0.20935464,111790.0,111780.0,0.155091]
[1760174506343,0.20935464,111790.0,111780.0,0.515891]
[1760174506344,0.11998164,111790.0,111780.0,0.515891]
[1760174506546,0.01998164,111790.0,111780.0,0.515891]
[1760174507139,0.10935464,111790.0,111780.0,0.515891]
[1760174507340,0.01998164,111790.0,111780.0,0.515891]
[1760174507841,0.10935464,111790.0,111780.0,0.155091]
[1760174508138,0.13108464,111790.0,111780.0,0.06571]
[1760174509139,0.23108464,111790.0,111780.0,0.06571]
[1760174509539,0.59188464,111790.0,111780.0,0.06571]
[1760174509745,0.20935464,111790.0,111780.0,0.06571]
[1760174510048,0.23108464,111790.0,111780.0,0.06571]
[1760174510243,0.20935464,111790.0,111780.0,0.06571]
[1760174511248,0.23108464,111790.0,111780.0,0.06571]
[1760174511444,0.59188464,111790.0,111780.0,0.06571]
[1760174512146,1.35863865,111790.0,111780.0,0.03]
[1760174512344,1.39066871,111790.0,111780.0,0.03]
[1760174512539,0.111119,111770.0,111760.0,0.02309]
[1760174512749,0.88475828,111770.0,111760.0,0.02309]
[1760174513046,0.88475828,111770.0,111760.0,0.03571]
[1760174513249,0.10937064,111770.0,111760.0,0.03571]
[1760174513646,0.20937064,111770.0,111760.0,0.03571]
[1760174513841,0.20937064,111770.0,111760.0,0.04571]
[1760174514041,0.23066064,111770.0,111760.0,0.04571]
[1760174514242,0.59146064,111770.0,111760.0,0.04571]
[1760174514542,0.59146064,111770.0,111760.0,0.03309]
[1760174514945,0.62351828,111770.0,111760.0,0.03309]
[1760174515146,0.59146064,111770.0,111760.0,0.03309]
[1760174515346,0.59146064,111770.0,111760.0,0.04689]
[1760174515845,0.37916064,111770.0,111760.0,0.40769]
[1760174516044,0.73996064,111770.0,111760.0,0.04689]
[1760174517350,0.23066064,111770.0,111760.0,0.04689]
[1760174517946,0.23066064,111770.0,111760.0,0.497087]
[1760174517947,0.20937064,111770.0,111760.0,0.497087]
[1760174518747,0.20937064,111770.0,111760.0,0.897087]
[1760174520041,0.11998164,111770.0,111760.0,0.897087]
[1760174520449,0.01998164,111770.0,111760.0,0.897087]
[1760174520751,0.0893841,111780.0,111770.0,0.125869]
[1760174520952,0.10940746,111780.0,111770.0,0.11648]
[1760174521252,0.13069746,111780.0,111770.0,0.11648]
[1760174521751,0.23069746,111780.0,111770.0,0.11648]
[1760174522249,1.14797746,111780.0,111770.0,0.08]
[1760174522444,0.089397,111760.0,111750.0,0.39724]
[1760174522648,0.50426036,111760.0,111750.0,0.01]
[1760174522846,1.08485339,111760.0,111750.0,0.01]
[1760174523153,1.10090954,111760.0,111750.0,0.01]
[1760174523353,1.05276036,111760.0,111750.0,0.01]
[1760174523553,1.10090954,111760.0,111750.0,0.01]
[1760174523852,1.15276036,111760.0,111750.0,0.01]
[1760174524053,1.18484441,111760.0,111750.0,0.01]
[1760174528165,1.18484441,111760.0,111750.0,0.02268]
[1760174528860,0.110695,111750.0,111740.0,0.03648]
[1760174529158,0.49151836,111750.0,111740.0,0.03648]
[1760174529655,0.13071836,111750.0,111740.0,0.03648]
[1760174529857,0.13071836,111750.0,111740.0,0.04648]
[1760174530056,0.23071836,111750.0,111740.0,0.04648]
[1760174530355,0.59151836,111750.0,111740.0,0.03268]
[1760174530554,1.35827237,111750.0,111740.0,0.011]
[1760174530760,1.35827237,111750.0,111740.0,0.00088501]
[1760174530761,1.39035642,111750.0,111740.0,0.00088501]
[1760174531358,0.110719,111720.0,111710.0,0.03648]
[1760174531556,0.85234236,111720.0,111710.0,0.03648]
[1760174532257,0.85234236,111720.0,111710.0,0.04409149]
[1760174532463,0.95234236,111720.0,111710.0,0.04409149]
[1760174532865,0.95234236,111720.0,111710.0,0.00761149]
[1760174532866,0.96509236,111720.0,111710.0,0.00761149]
[1760174533164,0.110727,111710.0,111690.0,0.3746]
[1760174533463,0.110735,111700.0,111690.0,0.4150267]
[1760174533763,0.13075836,111700.0,111690.0,0.4150267]
[1760174534163,0.110735,111700.0,111690.0,0.4150267]
[1760174534560,0.471535,111700.0,111690.0,0.0542267]
[1760174534765,0.49161375,111700.0,111690.0,0.4542267]
[1760174534968,0.49161375,111700.0,111690.0,0.0552267]
[1760174534969,0.59161375,111700.0,111690.0,0.0552267]
[1760174537063,0.59161375,111700.0,111690.0,0.0542267]
[1760174538165,0.23081375,111700.0,111690.0,0.0542267]
[1760174540270,0.23081375,111700.0,111690.0,0.4150267]
[1760174540271,0.20952375,111700.0,111690.0,0.4150267]
[1760174540665,0.35802375,111700.0,111690.0,0.0542267]
[1760174540868,0.1,111700.0,111690.0,0.9044797]
[1760174541078,0.0894405,111710.0,111700.0,0.03648]
[1760174541271,0.0894405,111710.0,111700.0,0.41728]
[1760174541272,0.10948835,111710.0,111700.0,0.41728]
[1760174542073,0.13077835,111710.0,111700.0,0.41728]
[1760174542376,0.50432835,111710.0,111700.0,0.02]
[1760174543170,0.60432835,111710.0,111700.0,0.02]
[1760174544475,1.00432835,111710.0,111700.0,0.02]
[1760174544677,0.120665,111700.0,111690.0,0.0077467]
[1760174544878,0.125373,111690.0,111680.0,8.005e-05]
[1760174545185,0.50622085,111690.0,111680.0,8.005e-05]
[1760174546077,0.60622085,111690.0,111680.0,8.005e-05]
[1760174547375,0.60622085,111690.0,111680.0,0.02337005]
[1760174547884,0.60722085,111690.0,111680.0,8.005e-05]
[1760174548278,1.00722287,111690.0,111680.0,8.005e-05]
[1760174549079,0.99454287,111690.0,111680.0,0.03616005]
[1760174549280,0.62658439,111690.0,111680.0,0.03616005]
[1760174550079,0.59454287,111690.0,111680.0,0.03616005]
[1760174550279,0.63926439,111690.0,111680.0,8.005e-05]
[1760174551182,0.60722287,111690.0,111680.0,0.02337005]
[1760174551383,0.62658439,111690.0,111680.0,0.03616005]
[1760174552182,0.59454287,111690.0,111680.0,0.03616005]
[1760174552484,0.57130287,111690.0,111680.0,0.04616005]
[1760174553484,0.59454287,111690.0,111680.0,0.04616005]
[1760174553985,0.60722287,111690.0,111680.0,0.03337005]
[1760174554183,0.60722287,111690.0,111680.0,0.02337005]
[1760174554383,1.03926439,111690.0,111680.0,8.005e-05]
[1760174554684,1.00722287,111690.0,111680.0,8.005e-05]
[1760174555787,0.59454287,111690.0,111680.0,0.03616005]
[1760174557487,0.60259287,111690.0,111680.0,0.02337005]
[1760174557780,0.60259287,111690.0,111680.0,8.005e-05]
[1760174557980,0.59454287,111690.0,111680.0,0.02337005]
[1760174558386,0.62658439,111690.0,111680.0,0.03616005]
[1760174558585,0.59454287,111690.0,111680.0,0.03616005]
[1760174559090,0.62658439,111690.0,111680.0,0.03616005]
[1760174561092,0.77508439,111690.0,111680.0,0.03616005]
[1760174561895,0.62658439,111690.0,111680.0,0.03616005]
[1760174562090,0.26578439,111690.0,111680.0,0.40696005]
[1760174562891,0.26578439,111690.0,111680.0,0.04616005]
[1760174563092,0.62658439,111690.0,111680.0,0.04616005]
[1760174563395,0.63463439,111690.0,111680.0,0.04616005]
[1760174563793,0.63463439,111690.0,111680.0,0.03337005]
[1760174564093,0.63463439,111690.0,111680.0,0.01008005]
[1760174564596,1.15109287,111690.0,111680.0,8.005e-05]
[1760174564989,1.21540127,111690.0,111680.0,8.005e-05]
[1760174565190,0.111837,111660.0,111650.0,0.03519]
[1760174565496,0.52481286,111660.0,111650.0,0.06476594]
[1760174566298,0.6248882,111660.0,111650.0,0.04519]
[1760174566798,0.6248882,111660.0,111650.0,0.06476594]
[1760174567292,0.6375682,111660.0,111650.0,0.06476594]
[1760174567501,1.05444969,111660.0,111650.0,0.07234554]
[1760174568195,0.6248882,111660.0,111650.0,0.07234554]
[1760174569497,1.05444969,111660.0,111650.0,0.07234554]
[1760174569897,1.05444969,111660.0,111650.0,0.0527696]
[1760174570396,1.04176969,111660.0,111650.0,0.07234554]
[1760174570599,0.6248882,111660.0,111650.0,0.07234554]
[1760174571396,0.6248882,111660.0,111650.0,0.0527696]
[1760174571596,0.2640882,111660.0,111650.0,0.0527696]
[1760174572203,0.20960221,111660.0,111650.0,0.4527696]
[1760174572403,0.1640882,111660.0,111650.0,0.4527696]
[1760174572702,0.5248882,111660.0,111650.0,0.0527696]
[1760174573603,0.6248882,111660.0,111650.0,0.0527696]
[1760174574797,0.6375682,111660.0,111650.0,0.0527696]
[1760174575003,0.6248882,111660.0,111650.0,0.0527696]
[1760174575900,0.2417282,111660.0,111650.0,0.5422547]
[1760174576202,0.20960221,111660.0,111650.0,0.5422547]
[1760174576599,0.20960221,111660.0,111650.0,0.9030547]
[1760174576600,0.12012521,111660.0,111650.0,0.9030547]
[1760174576799,0.10960221,111660.0,111650.0,0.9030547]
[1760174577304,0.10960221,111660.0,111650.0,0.0527696]
[1760174577809,0.14352221,111660.0,111650.0,0.0527696]
[1760174578014,0.13080221,111660.0,111650.0,0.0527696]
[1760174578709,0.10960221,111660.0,111650.0,0.4527696]
[1760174579103,0.13080221,111660.0,111650.0,0.4527696]
[1760174579303,0.13080221,111660.0,111650.0,0.0527696]
[1760174579502,0.23080221,111660.0,111650.0,0.0527696]
[1760174580103,0.20960221,111660.0,111650.0,0.4527696]
[1760174582007,0.23080221,111660.0,111650.0,0.4527696]
[1760174582607,0.12012521,111660.0,111650.0,1.31993609]
[1760174582800,0.02012521,111660.0,111650.0,1.31993609]
[1760174583007,0.14180838,111680.0,111670.0,0.03487]
[1760174583206,0.14180838,111680.0,111670.0,0.40567]
[1760174583705,0.14180838,111680.0,111670.0,0.495139]
[1760174583902,0.10968239,111680.0,111670.0,0.495139]
[1760174584206,0.10968239,111680.0,111670.0,0.40567]
[1760174584509,0.23088239,111680.0,111670.0,0.40567]
[1760174584900,0.10968239,111680.0,111670.0,0.895139]
[1760174585304,0.02021699,111680.0,111670.0,0.895139]
[1760174586905,0.0894485,111700.0,111690.0,0.03487]
[1760174587105,0.10964882,111700.0,111690.0,0.515123]
[1760174587405,0.02020382,111700.0,111690.0,0.915123]
[1760174587608,0.02020382,111700.0,111690.0,1.275923]
[1760174588205,0.49164882,111700.0,111690.0,0.03487]
[1760174588410,0.13084882,111700.0,111690.0,0.04487]
[1760174588609,0.49164882,111700.0,111690.0,0.04487]
[1760174589609,0.10964882,111700.0,111690.0,0.134323]
[1760174589810,0.10964882,111700.0,111690.0,0.04487]
[1760174590010,0.10964882,111700.0,111690.0,0.40567]
[1760174590314,0.10964882,111700.0,111690.0,0.495123]
[1760174590511,0.02020382,111700.0,111690.0,0.895123]
[1760174591016,0.4714172,111740.0,111730.0,0.03487]
[1760174591206,0.1894172,111740.0,111730.0,0.06487]
[1760174591412,0.1894172,111740.0,111730.0,0.42567]
[1760174591812,0.1,111740.0,111730.0,0.515091]
[1760174592117,0.0894012,111760.0,111740.0,0.1242791]
[1760174592415,0.484899,111770.0,111760.0,0.02107]
[1760174592716,0.845699,111770.0,111760.0,0.02107]
[1760174592918,0.03471,111760.0,111750.0,0.02107]
[1760174593118,0.39551,111760.0,111750.0,0.03107]
[1760174593318,0.39551,111760.0,111750.0,0.03771982]
[1760174593916,0.90178849,111760.0,111750.0,0.03771982]
[1760174594212,1.40178849,111760.0,111750.0,0.01664982]
[1760174594418,1.40178849,111760.0,111730.0,0.03487]
[1760174594419,0.110613,111740.0,111730.0,0.03487]
[1760174594716,0.110613,111740.0,111730.0,0.05487]
[1760174595113,0.110613,111740.0,111730.0,0.06134915]
[1760174595522,0.210613,111740.0,111730.0,0.06134915]
[1760174597018,0.571413,111740.0,111730.0,0.06134915]
[1760174597415,0.584923,111740.0,111730.0,0.06134915]
[1760174597924,0.189413,111740.0,111730.0,0.06134915]
[1760174598318,0.189413,111740.0,111730.0,0.15077015]
[1760174598825,0.189413,111740.0,111730.0,0.91157015]
[1760174599425,0.089413,111740.0,111730.0,0.91157015]
[1760174599923,0.88827849,111760.0,111750.0,0.03487]
[1760174600425,0.90178849,111760.0,111750.0,0.02107]
[1760174601120,1.00178849,111760.0,111750.0,0.02107]
[1760174601325,1.00278849,111760.0,111750.0,0.02107]
[1760174602322,0.98927849,111760.0,111750.0,0.03487]
[1760174602525,0.572397,111760.0,111750.0,0.03487]
[1760174602727,0.585907,111760.0,111750.0,0.03487]
[1760174603026,0.585907,111760.0,111750.0,0.02107]
[1760174603727,0.60564858,111760.0,111750.0,0.02107]
[1760174603927,0.59213858,111760.0,111750.0,0.03473]
[1760174604222,0.451197,111760.0,111750.0,0.04473]
[1760174604819,0.02074173,111760.0,111750.0,0.534135]
[1760174605029,0.001,111760.0,111750.0,0.894935]
[1760174605227,0.4501923,111770.0,111760.0,0.01366]
[1760174605422,0.46993478,111770.0,111760.0,0.06471]
[1760174606122,0.49232478,111770.0,111760.0,0.06471]
[1760174610426,0.13152478,111770.0,111760.0,0.06471]
[1760174611028,0.50621478,111770.0,111760.0,0.05105]
[1760174612325,0.60621478,111770.0,111760.0,0.05105]
[1760174612829,1.02309627,111770.0,111760.0,0.03]
[1760174613126,1.42309627,111770.0,111760.0,0.03]
[1760174614920,1.57159627,111770.0,111760.0,0.03]
[1760174615121,1.61978525,111770.0,111760.0,0.03]
[1760174615327,0.125693,111740.0,111730.0,0.04132915]
[1760174615533,0.50623548,111740.0,111730.0,0.15752915]
[1760174616427,0.50623548,111740.0,111730.0,0.13647915]
[1760174616627,0.60623548,111740.0,111730.0,0.13647915]
[1760174616823,0.125709,111720.0,111710.0,0.02105]
[1760174617027,0.50625148,111720.0,111710.0,0.14105]
[1760174618331,0.50625148,111720.0,111710.0,0.14205]
[1760174618730,0.60625148,111720.0,111710.0,0.14205]
[1760174619231,0.60625148,111720.0,111710.0,0.16326959]
[1760174619431,0.59236148,111720.0,111710.0,0.16326959]
[1760174619833,0.59236148,111720.0,111710.0,0.16226959]
[1760174620630,0.59236148,111720.0,111710.0,0.16126959]
[1760174621128,0.11974248,111720.0,111710.0,0.92206959]
[1760174621333,0.25767148,111720.0,111710.0,0.92206959]
[1760174621834,0.28006148,111720.0,111710.0,0.92206959]
[1760174622433,0.25767148,111720.0,111710.0,0.52206959]
[1760174622633,0.25767148,111720.0,111710.0,0.92206959]
[1760174622834,0.25767148,111720.0,111710.0,0.61150659]
[1760174623728,0.25767148,111720.0,111710.0,1.01150659]
[1760174624331,0.27870148,111720.0,111710.0,0.92206959]
[1760174624524,0.27870148,111720.0,111710.0,0.52206959]
[1760174625131,0.27870148,111720.0,111710.0,0.61150659]
[1760174625433,0.18927248,111720.0,111710.0,0.61150659]
[1760174625835,0.27870148,111720.0,111710.0,0.61150659]
[1760174627629,0.25767148,111720.0,111710.0,0.61150659]
[1760174628027,0.25767148,111720.0,111710.0,1.01150659]
[1760174629035,0.01974248,111720.0,111710.0,1.01150659]
[1760174629234,0.1485,111730.0,111720.0,0.125469]
[1760174629536,0.25792443,111730.0,111720.0,0.626269]
[1760174629926,0.16850343,111730.0,111720.0,1.026269]
[1760174636342,0.15286827,111730.0,111720.0,1.026269]
[1760174636535,0.13286484,111730.0,111720.0,1.026269]
[1760174636838,0.24547984,111750.0,111740.0,0.0368]
[1760174637039,0.26548733,111750.0,111740.0,0.5176]
[1760174637748,0.62628733,111750.0,111740.0,0.1568]
[1760174637949,0.36548733,111750.0,111740.0,0.5176]
[1760174638244,0.34227733,111750.0,111740.0,0.607013]
[1760174638551,0.24227733,111750.0,111740.0,0.1568]
[1760174639046,0.26548733,111750.0,111740.0,0.1568]
[1760174639649,0.27932733,111750.0,111740.0,0.1568]
[1760174639850,0.26548733,111750.0,111740.0,0.5176]
[1760174640050,0.36548733,111750.0,111740.0,0.5176]
[1760174640241,0.26548733,111750.0,111740.0,0.5176]
[1760174641052,0.27932733,111750.0,111740.0,0.47926]
[1760174642852,1.14012733,111750.0,111740.0,0.11846]
[1760174643753,1.14012733,111750.0,111740.0,0.0953]
[1760174644559,0.25932784,111740.0,111730.0,0.38396]
[1760174644753,0.64013533,111740.0,111730.0,0.02]
[1760174644958,1.07222417,111740.0,111730.0,0.02]
[1760174645455,0.64013533,111740.0,111730.0,0.04316]
[1760174645654,0.27933533,111740.0,111730.0,0.04316]
[1760174645847,0.27933533,111740.0,111730.0,0.141741]
[1760174645848,0.28992233,111740.0,111730.0,0.141741]
[1760174646054,0.34228533,111740.0,111730.0,0.502541]
[1760174646553,0.34228533,111740.0,111730.0,0.05232]
[1760174646759,0.34228533,111740.0,111730.0,0.04316]
[1760174646760,0.37933533,111740.0,111730.0,0.04316]
[1760174647153,0.34228533,111740.0,111730.0,0.502541]
[1760174648360,0.36549533,111740.0,111730.0,0.41312]
[1760174648560,0.37933533,111740.0,111730.0,0.41312]
[1760174648755,0.34228533,111740.0,111730.0,0.502541]
[1760174649058,0.07887281,111760.0,111750.0,0.00697]
[1760174649261,0.24745097,111760.0,111750.0,0.43093]
[1760174649458,0.24745097,111760.0,111750.0,0.520335]
[1760174649658,0.24745097,111760.0,111750.0,0.07013]
[1760174649961,0.24745097,111760.0,111750.0,0.43093]
[1760174651656,0.27066097,111760.0,111750.0,0.43093]
[1760174652058,0.24745097,111760.0,111750.0,0.43093]
[1760174654861,0.28450097,111760.0,111750.0,0.42396]
[1760174655163,0.64530097,111760.0,111750.0,0.06316]
[1760174655465,1.04530097,111760.0,111750.0,0.04]
[1760174655652,1.04530097,111760.0,111740.0,0.3608]
[1760174655961,1.774955,111750.0,111740.0,0.3608]
[1760174656157,1.79503316,111750.0,111740.0,0.3608]
[1760174656762,1.79503316,111750.0,111720.0,0.0964186]
[1760174656763,0.126471,111730.0,111720.0,0.02316]
[1760174656960,0.14654916,111730.0,111720.0,0.44396]
[1760174657163,0.02007816,111730.0,111720.0,0.940379]
[1760174657359,0.2379175,111740.0,111730.0,0.03232]
[1760174657662,0.25800687,111740.0,111730.0,0.45312]
[1760174657853,0.29505687,111740.0,111730.0,0.44396]
[1760174658568,0.28121687,111740.0,111730.0,0.45312]
[1760174658965,0.16858937,111740.0,111730.0,0.542541]
[1760174659462,0.02008937,111740.0,111730.0,0.942541]
[1760174659859,1.6485,111750.0,111740.0,0.119543]
[1760174660063,1.6485,111750.0,111740.0,0.600343]
[1760174662166,1.737905,111750.0,111740.0,0.600343]
[1760174663061,1.6485,111750.0,111740.0,0.600343]
[1760174663860,0.2378929,111770.0,111750.0,0.124645]
[1760174664063,0.2378929,111770.0,111760.0,0.02879]
[1760174664365,0.2597629,111770.0,111760.0,0.13879]
[1760174664961,0.2597629,111770.0,111760.0,0.49959]
[1760174665568,0.2726429,111770.0,111760.0,0.49959]
[1760174665865,0.2726429,111770.0,111760.0,0.4925]
[1760174666564,0.3726429,111770.0,111760.0,0.4925]
[1760174667368,0.2726429,111770.0,111760.0,0.49959]
[1760174668470,0.2378929,111770.0,111760.0,0.49959]
[1760174669171,0.63026574,111790.0,111770.0,0.120249]
[1760174669172,0.60341782,111790.0,111770.0,0.120249]
[1760174669371,0.089381,111780.0,111770.0,0.170249]
[1760174669569,0.089381,111780.0,111770.0,0.531049]
[1760174669872,0.2517177,111790.0,111770.0,0.531049]
[1760174670070,0.2735877,111790.0,111780.0,0.3825]
[1760174670271,0.2735877,111790.0,111780.0,0.4225]
[1760174670469,0.2735877,111790.0,111780.0,0.42947]
[1760174670971,0.2735877,111790.0,111780.0,0.4225]
[1760174671171,0.2745877,111790.0,111780.0,0.4225]
[1760174671872,0.29456734,111790.0,111780.0,0.4225]
[1760174672169,0.29456734,111790.0,111780.0,0.42947]
[1760174672568,0.29356734,111790.0,111780.0,0.42947]
[1760174672768,0.29456734,111790.0,111780.0,0.42947]
[1760174673169,0.29456734,111790.0,111780.0,0.4225]
[1760174673770,0.25885734,111790.0,111780.0,0.518851]
[1760174673970,0.25885734,111790.0,111780.0,0.42947]
[1760174673971,0.28072734,111790.0,111780.0,0.42947]
[1760174674672,0.28072734,111790.0,111780.0,0.43638225]
[1760174675072,0.29360734,111790.0,111780.0,0.06861225]
[1760174675569,0.39360734,111790.0,111780.0,0.06861225]
[1760174676972,0.39360734,111790.0,111780.0,0.04691225]
[1760174676973,0.79360734,111790.0,111780.0,0.04691225]
[1760174677170,1.18649618,111790.0,111780.0,0.04691225]
[1760174677373,0.39360734,111790.0,111780.0,0.42941225]
[1760174679675,0.79918734,111790.0,111780.0,0.06861225]
[1760174682372,1.19918734,111790.0,111780.0,0.04691225]
[1760174682577,1.23127618,111790.0,111780.0,0.04]
[1760174682781,0.273699,111770.0,111760.0,0.3608]
[1760174682981,0.29367864,111770.0,111760.0,0.02]
[1760174683180,0.29367864,111770.0,111760.0,0.05020058]
[1760174683481,0.29367864,111770.0,111760.0,0.41100058]
[1760174683982,0.39367864,111770.0,111760.0,0.41100058]
[1760174684175,0.39367864,111770.0,111760.0,0.38787058]
[1760174684372,0.75447864,111770.0,111760.0,0.02707058]
[1760174684976,1.15447864,111770.0,111760.0,0.02]
[1760174685182,1.18656132,111770.0,111760.0,0.02]
[1760174687572,0.78656132,111770.0,111760.0,0.04313]
[1760174687779,0.78656132,111770.0,111760.0,0.02]
[1760174688473,1.18656132,111770.0,111760.0,0.02]
[1760174689984,0.78656132,111770.0,111760.0,0.02]
[1760174696591,0.0349,111730.0,111720.0,0.38187]
[1760174696790,0.110611,111730.0,111720.0,0.608389]
[1760174697384,0.01994543,111730.0,111720.0,1.008389]
[1760174697893,0.01994543,111730.0,111720.0,1.009389]
[1760174698094,0.10936643,111730.0,111720.0,1.009389]
[1760174698792,0.01994543,111730.0,111720.0,1.0164557]
[1760174698992,0.1031185,111750.0,111740.0,0.02863]
[1760174698993,0.2379085,111750.0,111740.0,0.02863]
[1760174699190,0.25784724,111750.0,111740.0,0.608843]
[1760174699393,0.25784724,111750.0,111740.0,1.008843]
[1760174699593,0.10934724,111750.0,111740.0,1.008843]
[1760174700698,0.01371,111760.0,111750.0,0.119635]
[1760174700699,0.0894007,111760.0,111750.0,0.119635]
[1760174700898,0.14423766,111760.0,111750.0,0.15107]
[1760174701196,0.70876904,111760.0,111750.0,0.15107]
[1760174701402,0.80876904,111760.0,111750.0,0.13]
[1760174701802,0.80876904,111760.0,111750.0,0.15107]
[1760174702801,0.80876904,111760.0,111750.0,0.13]
[1760174703502,1.16956904,111760.0,111750.0,0.13]
[1760174703697,1.56956904,111760.0,111750.0,0.13]
[1760174704001,1.56956904,111760.0,111750.0,0.01691817]
[1760174704002,1.60164926,111760.0,111750.0,0.01691817]
[1760174704599,0.272821,111730.0,111720.0,0.0070667]
[1760174704799,0.29275796,111730.0,111720.0,0.01]
[1760174705001,0.29275796,111730.0,111720.0,0.03107]
[1760174705300,0.65355796,111730.0,111720.0,0.03107]
[1760174705503,0.29275796,111730.0,111720.0,0.03107]
[1760174705802,0.39275796,111730.0,111720.0,0.03107]
[1760174706005,0.39275796,111730.0,111720.0,0.03794666]
[1760174707906,0.75355796,111730.0,111720.0,0.03794666]
[1760174708108,1.16958934,111730.0,111720.0,0.03794666]
[1760174708310,0.80878934,111730.0,111720.0,0.03794666]
[1760174709408,0.39275796,111730.0,111720.0,0.03794666]